Cogmind - Beta 9.4 @@@ ROGUE MODE // 2020.03.25 @ 22:42:03 Player: Adraius Result: Destroyed by X-72 Disruptor with Improved Arc Projector Performance ------------- Evolutions (6) 3000 Regions Visited (10) 2000 Robots Destroyed (229) 1145 Value Destroyed (9004) 9004 Prototype IDs (12) 240 Alien Tech Used (0) 0 Bonus (4429) 4429 TOTAL SCORE: 19818 Bonus ------- Triggered High Security 1000 High Alert Combat Kills 3429 Cogmind --------- Core Integrity 0/1150 Matter 292/300 Energy 98/100 System Corruption 14% Temperature Cool (0) Movement Core (50) Location -4/Armory Parts ------- > --- POWER (2) -------- (None) > --- PROPULSION (4) --- (None) > --- UTILITY (9) ------ Improved Target Analyzer Core Analyzer > --- WEAPON (4) ------- (None) > --- INVENTORY (4) ---- Experimental Heat Sink High-capacity Storage Unit Matter Compressor (250) Thunder Hammer Peak State ------------ > --- POWER ------------ Fission Core Antimatter Reactor > --- PROPULSION ------- Improved Treads Medium Treads Armored Huge Wheel > --- UTILITY ---------- Experimental Heat Sink Advanced Cooling System Large Storage Unit High-capacity Storage Unit High-capacity Storage Unit Targeting Computer Advanced Targeting Computer Improved Target Analyzer Improved Armor Integrity Analyzer > --- WEAPON ----------- Compact Ion Cannon Heavy Neutron Cannon Precision Assault Rifle KE Penetrator > --- INVENTORY -------- Reinforced Fission Core Reinforced Fission Core Antimatter Reactor Antimatter Reactor Improved Treads Experimental Heat Sink Improved Coolant Injector Compact Battery Matter Compressor Advanced Targeting Computer Core Analyzer Focal Shield Tesla Rifle Plasma Rifle Wave Gun Phase Gun Heavy Plasma Cannon Compact Ion Cannon Compact Ion Cannon Coil Gun KE Penetrator Tesla Bomb Launcher Scatter Rocket Array Thunder Hammer [Rating: 93] Favorites ----------- Power Angular Momentum Engine Engine Angular Momentum Engine Power Core Fission Core Reactor Antimatter Reactor Propulsion Light Treads Treads Light Treads Leg Carbon-fiber Leg Wheel Wheel Flight Unit Cesium-ion Thruster Utility High-capacity Storage Unit Device Experimental Heat Sink Storage High-capacity Storage Unit Processor Targeting Computer Hackware Hacking Suite Protection Hardened Light Armor Plating Weapon Autogun Energy Gun Force Rifle Energy Cannon Compact Ion Cannon Ballistic Gun Autogun Ballistic Cannon Heavy Flak Cannon Launcher Scatter Rocket Array Impact Weapon Thunder Hammer Slashing Weapon Great Axe Piercing Weapon Kinetic Spear Build | -11 -10 -9 -8 -7 -7 -7 -6 -5 -4 -4 ------- Run | Scr Mat Mat Mat Fac Was Fac Fac Fac Fac Arm Slots Evolved 12 | . . 2 2 2 . . 2 2 2 . Power 1 | . . . . . . . . . 1 . Propulsion 2 | . . . 1 1 . . . . . . Utility 7 | . . 1 1 1 . . 1 2 1 . Weapon 2 | . . 1 . . . . 1 . . . Parts Attached 236 | 5 7 9 15 8 6 3 51 79 48 5 Power 24 | 1 2 4 2 . . . 2 6 7 . Engine 12 | 1 2 3 2 . . . 2 2 . . Core 8 | . . 1 . . . . . 3 4 . Reactor 4 | . . . . . . . . 1 3 . Propulsion 46 | 2 . 2 1 2 . . 14 14 9 2 Treads 31 | 2 . 2 1 2 . . 4 14 6 . Leg 1 | . . . . . . . 1 . . . Wheel 12 | . . . . . . . 9 . 3 . Hover . | . . . . . . . . . . . Flight 2 | . . . . . . . . . . 2 Utility 69 | 1 3 1 4 2 1 2 20 23 10 2 Device 36 | . 1 . . . . 1 14 14 4 2 Storage 12 | 1 2 1 3 . . . 2 2 1 . Processor 12 | . . . 1 . 1 . 2 4 4 . Hackware 1 | . . . . . . 1 . . . . Protection 8 | . . . . 2 . . 2 3 1 . Artifact . | . . . . . . . . . . . Weapon 97 | 1 2 2 8 4 5 1 15 36 22 1 Energy Gun 21 | . . 1 3 2 . 1 4 8 2 . Energy Cannon 10 | . . . . . . . . 4 6 . Ballistic Gun 34 | 1 2 1 4 1 3 . 2 12 8 . Ballistic Cannon 8 | . . . . . 1 . 5 2 . . Launcher 16 | . . . 1 1 . . 1 8 5 . Special Weapon . | . . . . . . . . . . . Impact Weapon 6 | . . . . . . . 3 1 1 1 Slashing Weapon 1 | . . . . . 1 . . . . . Piercing Weapon 1 | . . . . . . . . 1 . . Special Melee Weapon . | . . . . . . . . . . . Unidentified Prototypes 12 | . . 1 . 1 . . 1 8 1 . Parts Lost 61 | . . . . . 6 1 10 9 30 5 Power 4 | . . . . . . . . 1 3 . Propulsion 19 | . . . . . 2 . 6 . 8 3 Utility 20 | . . . . . 1 1 3 6 7 2 Weapon 18 | . . . . . 3 . 1 2 12 . Highest Loss Streak 9 | . . . . . 6 1 5 2 9 9 Average Slot Usage (%) 88 | . 98 97 99 99 77 10 76 93 87 21 Engine 5 | . 14 10 5 7 5 . 5 2 . . Core 1 | . . . 3 . . . . 1 5 . Treads 17 | . 28 22 27 30 22 . 7 17 10 . Wheel 2 | . . . . . . . 11 . 3 . Device 7 | . 2 . . . . 7 11 11 11 6 Storage 14 | . 25 30 27 23 18 . 1 10 14 . Processor 9 | . . . 8 7 6 . . 18 15 12 Protection 2 | . . . . 7 5 . 5 2 . . Energy Gun 4 | . . 11 7 6 . . 6 3 . . Energy Cannon 1 | . . . . . . . . 1 10 . Ballistic Gun 13 | . 26 22 19 13 12 . 2 13 8 . Ballistic Cannon 3 | . . . . . 5 . 13 2 . . Naked Turns 30 | . . . . . 27 3 . . . . Heaviest Build 141 | 9 59 81 113 122 121 5 85 121 141 4 Greatest Support 126 | 40 40 40 60 80 80 3 48 126 116 10 Greatest Overweight (x) 18 | . 1 2 1 1 1 1 4 3 18 1 Average Overweight (x) 1 | . . 1 1 1 . . 1 . 4 . Largest Inventory Capacity 28 | 6 18 24 28 28 28 4 12 26 26 4 Average Capacity 17 | 5 16 22 25 28 22 4 5 17 24 4 Most Carried 28 | 4 18 24 28 28 28 4 12 22 24 4 Average Carried 15 | 2 15 21 24 26 22 4 4 15 15 3 Final Capacity 28 | 6 18 24 28 28 4 4 12 26 4 4 Final Carried 28 | 3 18 23 28 28 4 4 10 22 4 4 Class Distribution -------------------- 35% | Scavenger-Gunner 21% | Hauler-Gunner 19% | Mutant 10% | Scavenger-Tank 8% | Scavenger-Mutant Dominant Class ---------------- Mutant | -10/Materials Hauler-Gunner | -9/Materials Hauler-Gunner | -8/Materials Hauler-Gunner | -7/Factory Scavenger-Gunner | -7/Waste Mutant | -7/Factory Scavenger-Tank | -6/Factory Scavenger-Gunner | -5/Factory Scavenger-Gunner | -4/Factory Mutant | -4/Armory Resources | -11 -10 -9 -8 -7 -7 -7 -6 -5 -4 -4 ----------- Run | Scr Mat Mat Mat Fac Was Fac Fac Fac Fac Arm Matter Collected 6926 | 218 426 320 557 343 . 150 1152 2685 1056 19 Remotely . | . . . . . . . . . . . Salvage Created 11814 | . 736 791 738 288 . . 1114 5092 3055 . Parts 519 | . 42 60 39 15 . . 42 217 104 . Haulers Intercepted 17 | . 1 4 1 2 . . 1 5 3 . Recyclers Shooed 23 | . 2 . . 1 . . 1 13 6 . Parts Field Recycled . | . . . . . . . . . . . Retrieved Matter . | . . . . . . . . . . . Parts Self-Destructed . | . . . . . . . . . . . Prevented . | . . . . . . . . . . . Kills | -11 -10 -9 -8 -7 -7 -7 -6 -5 -4 -4 ------- Run | Scr Mat Mat Mat Fac Was Fac Fac Fac Fac Arm Combat Hostiles Destroyed 161 | . 16 11 16 3 . . 16 60 39 . Melee 2 | . . . . . . . 1 . 1 . Guns 89 | . 16 10 12 3 . . 5 39 4 . Cannons 38 | . . . . . . . 9 10 19 . AOE 26 | . . 1 4 . . . . 10 11 . Classes Destroyed 18 | . 4 4 2 . . . 2 6 . . Worker 16 | . . 3 1 . . . 1 5 6 . Builder 13 | . . 1 . . . . . 7 5 . Tunneler 2 | . . . . . . . 1 1 . . Hauler 17 | . 1 4 1 2 . . 1 5 3 . Recycler 14 | . 1 . . . . . 2 7 4 . Carrier 1 | . . . . . . . . 1 . . Mechanic 2 | . . . . . . . . 1 1 . Operator 2 | . . . . . . . . 1 1 . Watcher 1 | . . 1 . . . . . . . . Swarmer 20 | . 3 2 5 . . . . 6 4 . Saboteur 3 | . . . . . . . . 1 2 . Grunt 81 | . 13 5 7 1 . . 9 26 20 . Brawler 3 | . . . . . . . . 3 . . Duelist 5 | . . . 1 . . . 2 2 . . Protector 1 | . . . . . . . . 1 . . Sentry 19 | . . 4 2 1 . . 1 7 4 . Hunter 12 | . . . 1 1 . . 1 7 2 . Programmer 17 | . . . . . . . 3 7 7 . Best Kill Streak 18 | . 5 5 6 1 . . 4 12 18 . Combat Bots Only 7 | . 5 3 5 1 . . 4 6 7 . Max Kills in Single Turn 5 | . 2 2 5 1 . . 1 5 4 . Gunslinging 1 | . 1 1 . . . . . . . . Exploded 4 | . . 1 4 . . . . 3 3 . Melee 1 | . . . . . . . 1 . 1 . Uniques/NPCs Destroyed . | . . . . . . . . . . . Combat | -11 -10 -9 -8 -7 -7 -7 -6 -5 -4 -4 -------- Run | Scr Mat Mat Mat Fac Was Fac Fac Fac Fac Arm Damage Taken 13240 | . 317 304 661 253 422 209 1450 4593 4185 846 Core 2239 | . 49 83 55 8 312 116 67 395 513 641 Absorbed by Shields 373 | . . . . . . . 210 163 . . Reduced by Siege Mode 169 | . . . . . . . . 169 . . Core Remaining (%) 76 | 100 80 79 90 . . 37 92 60 . . Volleys Fired 403 | . 41 30 44 14 11 . 40 139 84 . Largest 4 | . 2 3 3 3 3 . 4 4 4 . Hottest 349 | . 46 91 102 106 101 . 241 226 349 . Shots Fired 1245 | . 81 90 121 39 33 . 142 460 279 . Gun 896 | . 81 90 120 39 22 . 52 375 117 . Cannon 328 | . . . . . 11 . 90 76 151 . Launcher 21 | . . . 1 . . . . 9 11 . Special . | . . . . . . . . . . . Kinetic 812 | . 81 60 88 26 33 . 114 308 102 . Thermal 326 | . . . 14 . . . 22 124 166 . Explosive 10 | . . . . . . . . 5 5 . Electromagnetic 97 | . . 30 19 13 . . 6 23 6 . Robot Hit Streak 44 | . 9 13 41 17 31 . 9 29 44 . Robot Miss Streak 10 | . 2 7 4 1 1 . 10 2 5 . Penetration Max 1 | . . . . . . . . 1 1 . Secondary Targets 7 | . 2 2 2 . . . . 1 . . Max Gunslinging Chain 1 | . 1 1 1 . . . . 1 . . Shots Hit Robots 936 | . 54 66 94 31 33 . 108 363 186 1 Core Hits 559 | . 25 33 40 11 3 . 74 220 152 1 Critical Hits 61 | . . . 1 . 3 . 1 36 20 . Critical Kills 20 | . . . . . . . . 11 9 . Critical Parts Destroyed 36 | . . . 1 . . . 1 23 11 . Melee Attacks 32 | . . . . . 1 . 22 1 4 4 Impact 31 | . . . . . . . 22 1 4 4 Slashing 1 | . . . . . 1 . . . . . Piercing . | . . . . . . . . . . . Sneak Attacks 1 | . . . . . . . 1 . . . Combat Hostiles . | . . . . . . . . . . . Follow-up Attacks . | . . . . . . . . . . . Damage Inflicted 27863 | . 835 1065 1537 491 751 1 2335 11962 8865 21 Guns 14314 | . 835 949 1312 491 421 . 825 7586 1895 . Cannons 7003 | . . . . . 312 . 1133 1824 3734 . Explosions 6089 | . . 116 225 . . . . 2512 3236 . Melee 447 | . . . . . 18 . 368 40 . 21 Ramming 10 | . . . . . . 1 9 . . . Kinetic 12451 | . 835 583 913 311 733 . 1525 5954 1597 . Thermal 8634 | . . 116 366 . . . 322 3798 4032 . Explosive 3502 | . . . . . . . . 1247 2255 . Electromagnetic 2819 | . . 366 258 180 . . 111 923 981 . Impact 429 | . . . . . . . 368 40 . 21 Slashing 18 | . . . . . 18 . . . . . Piercing . | . . . . . . . . . . . Highest Corruption 18 | . . 1 . . 17 18 8 1 13 14 Average Corruption 3 | . . 1 . . 10 17 5 1 3 13 Corruption Purged . | . . . . . . . . . . . Effects 78 | . . 1 . . 13 6 31 11 6 10 Message Errors 10 | . . 1 . . . 1 6 1 . 1 Matter Fused 13 | . . . . . 3 3 6 . 1 . Heat Flow Errors 4 | . . . . . 1 . 2 . . 1 Energy Discharges 4 | . . . . . . . 1 . 1 2 Parts Rejected 2 | . . . . . . . 1 . . 1 Data Loss (minor) 9 | . . . . . 1 1 2 4 . 1 Data Loss (major) 2 | . . . . . 1 . 1 . . . Misfires 1 | . . . . . . . 1 . . . Misdirections 6 | . . . . . 1 1 . . . 4 Targeting Errors 24 | . . . . . 6 . 11 5 2 . Weapon Failures 3 | . . . . . . . . 1 2 . Overload Shots . | . . . . . . . . . . . Overflow Damage 669 | . . . . . . . 91 305 273 . Projectiles 197 | . . . . . . . . 63 134 . Explosions 381 | . . . . . . . . 242 139 . Melee 91 | . . . . . . . 91 . . . Knockbacks 23 | . . . . . . . 20 3 . . Impact 4 | . . . . . . . 3 1 . . Kinetic 18 | . . . . . . . 16 2 . . Secondary 1 | . . . . . . . 1 . . . Self-Inflicted Damage 347 | . . 75 7 . . . 4 91 170 . Shots 15 | . . 2 1 . . . . 4 8 . Rammed 4 | . . . . . . 1 3 . . . Targets Rammed 4 | . . . . . . 1 3 . . . Kicked . | . . . . . . . . . . . Crushed . | . . . . . . . . . . . Highest Temperature 555 | . 52 130 236 247 208 . 414 126 555 225 Average Temperature 82 | . 10 51 91 75 105 . 171 18 71 117 Received Heat Transfer 2328 | . 168 81 234 81 . 36 261 864 582 21 Effects 18 | . . . 2 . . . 12 . 3 1 Shutdowns 4 | . . . . . . . 2 . 2 . Energy Bleed 3 | . . . . . . . 2 . . 1 Interference 8 | . . . 2 . . . 6 . . . Short Circuit 1 | . . . . . . . 1 . . . Damage (minor) 1 | . . . . . . . 1 . . . Damage (core) 1 | . . . . . . . . . 1 . Siege Activations 12 | . . . . . . . . 12 . . Total Turns 215 | . . . . . . . . 215 . . Longest Duration 45 | . . . . . . . . 45 . . Robots Corrupted 4 | . . . . . . . . 1 3 . Combat Hostiles 4 | . . . . . . . . 1 3 . Parts Fried 9 | . . . . . . . 1 3 5 . Impact Corruptions 6 | . . . . . . . 6 . . . Robots Melted 1 | . . . . . . . . . 1 . Combat Hostiles 1 | . . . . . . . . . 1 . Parts Melted 19 | . . . 3 . . . 1 6 9 . Heat Transferred 11180 | . . 100 768 . . . 687 4991 4634 . Parts Sabotaged 5 | . . . . . . . . . 3 2 Parts Stolen . | . . . . . . . . . . . Parts Stripped . | . . . . . . . . . . . Power Chain Reactions 4 | . . 2 2 . . . . . . . Missiles Intercepted . | . . . . . . . . . . . Alert | -11 -10 -9 -8 -7 -7 -7 -6 -5 -4 -4 ------- Run | Scr Mat Mat Mat Fac Was Fac Fac Fac Fac Arm Peak Influence 1899 | . 234 386 451 297 33 25 215 1899 1882 1107 Average Influence 489 | . 89 149 217 182 24 11 81 728 1517 1074 Maximum Alert Level 5 | . 1 1 2 1 . . 1 5 5 4 Low Security (%) 49 | 100 90 77 41 55 100 100 97 13 . . Level 1 17 | . 9 22 50 44 . . 2 24 . . Level 2 7 | . . . 7 . . . . 23 . . Level 3 6 | . . . . . . . . 17 . 81 Level 4 8 | . . . . . . . . 6 49 18 Level 5 8 | . . . . . . . . 7 46 . High Security 2 | . . . . . . . . 6 4 . Max Security . | . . . . . . . . . . . Squads Dispatched 43 | . 5 1 2 2 . . 5 14 12 2 Investigation 10 | . 4 1 . . . . 2 1 . 2 Extermination 6 | . . . . . . . 2 2 2 . Reinforcement 16 | . 1 . 2 2 . . 1 4 6 . Assault 10 | . . . . . . . . 6 4 . Garrison 1 | . . . . . . . . 1 . . Intercept . | . . . . . . . . . . . Construction Impeded 4 | . . . . . . . . 2 2 . Haulers Reinforced 3 | . . . . 1 . . . 1 1 . Stealth | -11 -10 -9 -8 -7 -7 -7 -6 -5 -4 -4 --------- Run | Scr Mat Mat Mat Fac Was Fac Fac Fac Fac Arm Distress Signals 12 | . 1 3 2 2 . 1 1 2 . . Communications Jammed . | . . . . . . . . . . . Distress Signals . | . . . . . . . . . . . Times Spotted 275 | . 24 15 27 13 6 3 25 83 66 13 Peak Tracking Total 13 | . 4 5 5 3 6 5 5 8 10 13 Tactical Retreats 14 | . . . 2 1 . . 1 7 2 1 Traps | -11 -10 -9 -8 -7 -7 -7 -6 -5 -4 -4 ------- Run | Scr Mat Mat Mat Fac Was Fac Fac Fac Fac Arm Traps Triggered 8 | . 2 1 . 1 . . 3 . . 1 Indirectly . | . . . . . . . . . . . Trap Hack Attempts . | . . . . . . . . . . . Triggered . | . . . . . . . . . . . Disarmed . | . . . . . . . . . . . Reprogrammed . | . . . . . . . . . . . Reused . | . . . . . . . . . . . Traps Extracted . | . . . . . . . . . . . Installed . | . . . . . . . . . . . Triggered . | . . . . . . . . . . . Machines | -11 -10 -9 -8 -7 -7 -7 -6 -5 -4 -4 ---------- Run | Scr Mat Mat Mat Fac Was Fac Fac Fac Fac Arm Machines Disabled 40 | . . 1 . 1 . . 3 26 9 . Max in Single Turn 15 | . . 1 . 1 . . 1 15 4 . Garrison Access 1 | . . . . . . . . 1 . . Machines Sabotaged . | . . . . . . . . . . . Garrisons Compromised . | . . . . . . . . . . . Overloaded Fab Kills . | . . . . . . . . . . . Fab Network Shutdowns . | . . . . . . . . . . . Hacking | -11 -10 -9 -8 -7 -7 -7 -6 -5 -4 -4 --------- Run | Scr Mat Mat Mat Fac Was Fac Fac Fac Fac Arm Machines Accessed 35 | . 6 8 2 2 . 1 5 7 2 2 Terminals 23 | . 4 7 1 1 . . 3 3 2 2 Fabricators 5 | . . . . 1 . 1 1 2 . . Repair Stations 1 | . . . . . . . . 1 . . Recycling Units 3 | . 2 . 1 . . . . . . . Scanalyzers 1 | . . 1 . . . . . . . . Garrison Access 2 | . . . . . . . 1 1 . . Total Hacks 78 | . 10 18 8 5 . 2 11 14 6 4 Successful 27 | . 3 7 7 3 . . 2 4 . 1 Failed 51 | . 7 11 1 2 . 2 9 10 6 3 Catastrophic 12 | . 3 3 . . . . 1 3 1 1 Database Lockouts . | . . . . . . . . . . . Manual 47 | . 10 12 4 5 . . 5 5 6 . Terminals 55 | . 8 16 4 4 . . 7 6 6 4 Fabricators 10 | . . . . 1 . 2 3 4 . . Repair Stations 1 | . . . . . . . . 1 . . Recycling Units 6 | . 2 . 4 . . . . . . . Scanalyzers 2 | . . 2 . . . . . . . . Garrison Access 4 | . . . . . . . 1 3 . . Terminal Hacks 13 | . 1 6 3 1 . . . 1 . 1 Part Schematic 1 | . 1 . . . . . . . . . Open Door 1 | . . . . . . . . . . 1 Terminal Index 1 | . . 1 . . . . . . . . Unreport Threat 3 | . . 3 . . . . . . . . Locate Traps 2 | . . 1 1 . . . . . . . Registered Components 4 | . . 1 1 1 . . . 1 . . Zone Layout 1 | . . . 1 . . . . . . . Fabricator Hacks 4 | . . . . . . . 2 2 . . Load Schematic 2 | . . . . . . . 1 1 . . Build 2 | . . . . . . . 1 1 . . Repair Station Hacks . | . . . . . . . . . . . Recycling Unit Hacks 1 | . . . 1 . . . . . . . Report Inventory 1 | . . . 1 . . . . . . . Scanalyzer . | . . . . . . . . . . . Garrison Access Hacks 1 | . . . . . . . . 1 . . Seal Access 1 | . . . . . . . . 1 . . Unauthorized Hacks 21 | . 4 4 6 4 . . . 3 . . Terminals 1 | . . . . 1 . . . . . . Botnet 1 | . . . . 1 . . . . . . Fabricators 1 | . . . . 1 . . . . . . Haulers 1 | . . . . 1 . . . . . . Repair Stations . | . . . . . . . . . . . Recycling Units 5 | . 2 . 3 . . . . . . . Monitor 1 | . . . 1 . . . . . . . Recyclers 1 | . . . 1 . . . . . . . Mask 1 | . . . 1 . . . . . . . Tunnel 2 | . 2 . . . . . . . . . Scanalyzers 1 | . . 1 . . . . . . . . Extract 1 | . . 1 . . . . . . . . Garrison Access . | . . . . . . . . . . . Data Cores Recovered 1 | . . . . . . . . . 1 . Used . | . . . . . . . . . . . Hacking Detections 31 | . 4 8 2 1 . 1 5 7 2 1 Full Trace Events 4 | . . . . . . . 2 1 . 1 Feedback Events 2 | . . . . . . . 2 . . . Corruption 1 | . . . . . . . 1 . . . Hackware Fried 1 | . . . . . . . 1 . . . Feedback Blocked . | . . . . . . . . . . . Robot Schematics Acquired . | . . . . . . . . . . . Robots Built . | . . . . . . . . . . . Matter . | . . . . . . . . . . . Time . | . . . . . . . . . . . Total Robot Build Rating . | . . . . . . . . . . . Part Schematics Acquired 8 | . 1 7 . . . . . . . . Parts Built 2 | . . . . . . . 1 1 . . Matter 204 | . . . . . . . 102 102 . . Time 42 | . . . . . . . 17 25 . . Total Part Build Rating 2 | . . . . . . . 1 1 . . Parts Repaired . | . . . . . . . . . . . Time . | . . . . . . . . . . . Parts Recycled . | . . . . . . . . . . . Recycled Matter . | . . . . . . . . . . . Retrieved Matter . | . . . . . . . . . . . Retrieved Components . | . . . . . . . . . . . Parts Scanalyzed . | . . . . . . . . . . . Part Schematics Acquired . | . . . . . . . . . . . Parts Damaged . | . . . . . . . . . . . Bothacking | -11 -10 -9 -8 -7 -7 -7 -6 -5 -4 -4 ------------ Run | Scr Mat Mat Mat Fac Was Fac Fac Fac Fac Arm Used RIF Installer . | . . . . . . . . . . . Robots Hacked . | . . . . . . . . . . . Non-combat . | . . . . . . . . . . . Combat . | . . . . . . . . . . . Robot Hacks Applied . | . . . . . . . . . . . Relay Couplers Released . | . . . . . . . . . . . Robots Rewired . | . . . . . . . . . . . Allies Hacked . | . . . . . . . . . . . Hacks Repelled . | . . . . . . . . . . . Allies | -11 -10 -9 -8 -7 -7 -7 -6 -5 -4 -4 -------- Run | Scr Mat Mat Mat Fac Was Fac Fac Fac Fac Arm Total Allies 1 | . . . . . 1 . . . . . Largest Group 1 | . . . . . 1 . . . . . Highest-Rated Group 31 | . . . . . 31 . . . . . Highest-Rated Ally 31 | . . . . . 31 . . . . . Total Orders 12 | . . . . . . . 10 2 . . EXPLORE 11 | . . . . . . . 9 2 . . RETURN 1 | . . . . . . . 1 . . . Ally Attacks 10 | . . . . . 10 . . . . . Total Damage 166 | . . . . . 166 . . . . . Kills . | . . . . . . . . . . . Allies Corrupted . | . . . . . . . . . . . Allies Melted . | . . . . . . . . . . . Intel | -11 -10 -9 -8 -7 -7 -7 -6 -5 -4 -4 ------- Run | Scr Mat Mat Mat Fac Was Fac Fac Fac Fac Arm Robot Analysis Total . | . . . . . . . . . . . Derelict Logs Recovered . | . . . . . . . . . . . Drone Launches 12 | . . . . . . . 10 2 . . Drone Recoveries . | . . . . . . . . . . . Exploration | -11 -10 -9 -8 -7 -7 -7 -6 -5 -4 -4 ------------- Run | Scr Mat Mat Mat Fac Was Fac Fac Fac Fac Arm Turns Passed 7086 | 62 874 597 547 454 151 139 1140 2127 869 126 Spaces Moved 3366 | 34 395 248 202 215 96 224 593 888 298 173 Core 436 | 2 . . . . 53 224 11 . 2 144 Treads 2241 | 32 395 248 202 215 43 . 207 825 74 . Legs . | . . . . . . . . . . . Wheels 684 | . . . . . . . 375 63 222 24 Hover . | . . . . . . . . . . . Flight 5 | . . . . . . . . . . 5 Fastest Speed 40 | 50 160 180 180 180 50 50 87 110 80 40 Average Speed 147 | 153 177 180 180 180 108 52 132 157 168 57 Slowest Speed 950 | 160 180 200 180 180 180 100 200 180 950 100 Overloaded Moves . | . . . . . . . . . . . Propulsion Burnouts . | . . . . . . . . . . . Robots Hopped . | . . . . . . . . . . . Cave-ins Triggered . | . . . . . . . . . . . Exploration Rate (%) 28 | 4 80 34 19 8 68 10 28 32 12 17 Regions Visited 10 Branch Regions 1 Pre-discovered Areas 2 | . 2 . . . . . . . . . Known Exits Taken . | . . . . . . . . . . . Unknown Exits Taken 8 | 1 1 1 1 . . 1 1 1 1 . Scrap Searched . | . . . . . . . . . . . Spaces Dug 5 | . . . . . . . 2 . 3 . Terrain Destroyed 292 | . . 10 8 . . . 10 174 90 . Melee 5 | . . . . . . . 2 . 3 . Projectile 67 | . . . . . . . 8 39 20 . AOE 220 | . . 10 8 . . . . 135 67 . Actions | -11 -10 -9 -8 -7 -7 -7 -6 -5 -4 -4 --------- Run | Scr Mat Mat Mat Fac Was Fac Fac Fac Fac Arm Total 4602 | 42 503 347 309 261 117 245 813 1303 469 193 Wait 289 | . 33 32 18 4 . 16 63 109 4 10 Move 3357 | 33 394 247 201 215 95 223 592 887 297 173 Hop . | . . . . . . . . . . . Pick Up 125 | 4 19 15 16 8 2 1 18 31 11 . Fast Attach 105 | 4 5 3 1 4 . 3 34 38 9 4 Attach 69 | 1 . 3 3 3 3 . 11 14 30 1 Detach 22 | . . 1 . 1 . . 3 10 6 1 Swap 62 | . 2 3 11 1 3 . 6 27 9 . Drop 134 | . 9 13 15 11 2 1 21 47 15 . Fire 403 | . 41 30 44 14 11 . 40 139 84 . Melee 32 | . . . . . 1 . 22 1 4 4 Ram 4 | . . . . . . 1 3 . . . Kick . | . . . . . . . . . . . Crush . | . . . . . . . . . . . Escape Stasis . | . . . . . . . . . . . Rewire . | . . . . . . . . . . . Trap . | . . . . . . . . . . . Miscellaneous . | . . . . . . . . . . . Route ------- -11/Scrapyard -10/Materials (discovered 3 exits: *Mat x2 / [*Min]) -9/Materials -8/Materials -7/Factory -7/Waste -7/Factory -6/Factory -5/Factory -4/Factory -4/Armory History --------- Turn | Location | Event 39 | -11/Scrapyard | Discovered new exit (range 15) 63 | -11/Scrapyard | Entered Materials 209 | -10/Materials | Discovered new exit (range 6) 301 | -10/Materials | Build established: Mutant 439 | -10/Materials | Discovered new exit (range 7) 840 | -10/Materials | Discovered new exit (range 15) 937 | -10/Materials | Entered another Materials area 937 | -9/Materials | Evolved 2 slots: Utility x1, Weapon x1 1368 | -9/Materials | Build established: Hauler-Gunner 1487 | -9/Materials | Discovered new exit (range 5) 1534 | -9/Materials | Entered another Materials area 1534 | -8/Materials | Evolved 2 slots: Propulsion x1, Utility x1 2036 | -8/Materials | Discovered new exit (range 8) 2081 | -8/Materials | Entered Factory 2081 | -7/Factory | Evolved 2 slots: Propulsion x1, Utility x1 2535 | -7/Factory | Sucked down chute 2535 | -7/Factory | Entered Waste 2536 | -7/Waste | Met a frightened Derelict 2550 | -7/Waste | EMP discharged 2617 | -7/Waste | Spotted C-40 Crusher 2644 | -7/Waste | Crushed by Compactor (1 part destroyed, 2 dropped) 2647 | -7/Waste | Crushed by Compactor (1 part destroyed, 2 dropped) 2650 | -7/Waste | EMP discharged 2650 | -7/Waste | System corruption reached 10% 2650 | -7/Waste | Crushed by Compactor (1 part destroyed, 1 dropped) 2653 | -7/Waste | Crushed by Compactor (1 part destroyed, 2 dropped) 2656 | -7/Waste | Crushed by Compactor (1 part destroyed, 1 dropped) 2659 | -7/Waste | Crushed by Compactor (1 part destroyed, 2 dropped) 2659 | -7/Waste | Spotted C-40 Crusher 2665 | -7/Waste | Spotted C-40 Crusher 2668 | -7/Waste | Spotted C-40 Crusher 2670 | -7/Waste | Spotted C-40 Crusher 2674 | -7/Waste | Spotted C-40 Crusher 2678 | -7/Waste | Discovered new exit (range 16) 2686 | -7/Waste | Entered Factory 2690 | -7/Factory | Lost 6 parts (2n1u3w) 2800 | -7/Factory | Discovered new exit (range 15) 2818 | -7/Factory | Core integrity fell below 50% 2825 | -7/Factory | Entered another Factory area 2825 | -6/Factory | Evolved 2 slots: Utility x1, Weapon x1 3401 | -6/Factory | Lost 3 parts (2n1u) 3671 | -6/Factory | Lost 5 parts (4n1w) 3702 | -6/Factory | Discovered new exit (range 43) 3704 | -6/Factory | Hacking Suite fried by hacking feedback 3710 | -6/Factory | Found Prototype Launcher 3710 | -6/Factory | Identified Scatter Rocket Array 3721 | -6/Factory | Fabricated Hcp. Storage Unit (x1) 3749 | -6/Factory | Build established: Scavenger-Tank 3965 | -6/Factory | Entered another Factory area 3965 | -5/Factory | Evolved 2 slots: Utility x2 4036 | -5/Factory | Found Prototype Launcher 4036 | -5/Factory | Identified Tesla Bomb Launcher 5465 | -5/Factory | First assault squad dispatched 5478 | -5/Factory | Garrison activated, responded to threat 5883 | -5/Factory | Discovered new exit (range 15) 5891 | -5/Factory | Build established: Scavenger-Gunner 5954 | -5/Factory | High security lockdown imminent 5973 | -5/Factory | Fabricated Hcp. Storage Unit (x1) 6034 | -5/Factory | High security lockdown engaged 6092 | -5/Factory | Entered another Factory area 6092 | -4/Factory | Evolved 2 slots: Power x1, Utility x1 6259 | -4/Factory | Lost 4 parts (3n1u) 6263 | -4/Factory | Destroyed 7 combat bots 6592 | -4/Factory | First assault squad dispatched 6812 | -4/Factory | Destroyed 7 combat bots 6814 | -4/Factory | Lost 9 parts (1p1n2u5w) 6856 | -4/Factory | Discovered new exit (range 14) 6914 | -4/Factory | Destroyed 7 combat bots 6919 | -4/Factory | Lost 9 parts (1p2n2u4w) 6924 | -4/Factory | High security lockdown imminent 6954 | -4/Factory | System corruption reached 10% 6961 | -4/Factory | Entered Armory 6983 | -4/Armory | Core integrity fell below 50% 7038 | -4/Armory | Core integrity fell below 20% 7062 | -4/Armory | Lost 9 parts (3n3u3w) 7081 | -4/Armory | Spotted B-86 Titan 7087 | -4/Armory | Destroyed by X-72 Disruptor with Improved Arc Projector Last Messages --------------- 07002_ E-15 Imp destroyed. 07003_ Acquired Cesium-ion Thruster. 07005_ System corrupted: Slammed into wall. 07005_ Cesium-ion Thruster destroyed. 07006_ Acquired 19 matter. 07007_ Acquired Cesium-ion Thruster. 07009_ System corrupted: Component data lost. 07010_ Focal Shield destroyed. 07010_ Cesium-ion Thruster destroyed. 07030_ System corrupted: Energy discharge (-8). 07031_ Imp. Armor Integrity Analyzer destroyed. 07043_ Connecting with Terminal... 07043_ ALERT: Suspicious activity at Terminal A005. Dispatching Investigation squad. 07049_ NR2BOSXHQUWZ0AV8L:ITP 07063_ Triggered Alarm Trap. 07063_ An alarm sounds. 07063_ ALERT: Alarm triggered, dispatching investigation squad. 07066_ System corrupted: Heat flow error (+268). 07067_ Overheating: Energy bleed (-23). Map ----- +----------------------------------------------------+ | ?????????????????????????????????????????????????? | | ?????????????????????????????????????????????????? | | ?????????????????????????????????????????????????? | | ?????????????????????????????????????????????????? | | ?????????????????????????????????????????????????? | | ?????????????????????????????????????????????????? | | ?????????????????????????????????????????????????? | | ?????????????????????????????????????????????????? | | ?????????????????????????????????################# | | ???????????????????#????########## | | ???????????????????# ???# | | ?????????????#?????# #?## ########+#############+# | | ???????????### ##### ;##; #????? ????????? | | ??????????+ #??? """ ??????# | | ???????????## x #?F" """ !#?????# | | ??????????# ==| !! x #" """ #?????# | | ??????????# ==| ! #""" #?????# | | ??????????### == #""" ! #?????# | | ?????????? ###? #?????##### | | ?????????? ; #?? #?????????? | | ?????????? ###???########?????????? | | ?????????? " " ;#?????????????????????? | | ??????????? "Y" ##?????????????????????? | | ??????????? """ #??????????????????????? | | ???????????? ####e#??????????????????????? | | ???????????? ######+#???#@#??????????????????????? | | ??????????????????????? #??????????????????????? | | ????????????????????? #??????????????????????? | | ??????????????????? "" "" #??????????????????????? | | ????????????????? ""T"" ???????????????????????? | | ??????????????? """ ???????????????????????? | | ??????????????##?#########???????????????????????? | | | | | | | | | | | | | | | | | | | | | | | | | | | | | | | | | | | | | +----------------------------------------------------+ Best States ------------- Heat Dissipation 104 Coolant Potential 80 Energy Generation 35 Energy Capacity 560 Matter Stores 300 Matter Capacity 300 Sight Range 16 Robot Scan Range 10 Terrain Scan Density 10 Cloak Strength 4 Armor Coverage 600 Resistance: KI 20 Resistance: TH 20 Core Shielding 20 Phase Shifting 5 Evasion (%) 62 Targeting Accuracy 15 Target Analysis 6 Core Analysis 6 Armor Integrity Analysis 50 Recoil Reduction 4 Offensive Hacking 10 Item Schematics ----------------- Hcp. Storage Unit | -10/Materials | Hacked Wheel | -9/Materials | Extracted Lgt. EM Pulse Cannon | -9/Materials | Extracted VTOL Module | -9/Materials | Extracted Imp. Targeting Computer | -9/Materials | Extracted Mace | -9/Materials | Extracted Sml. Laser | -9/Materials | Extracted Integration Mediator | -9/Materials | Extracted Robot Schematics ------------------ None Fabricated ------------ Hcp. Storage Unit | x1 | -6/Factory Hcp. Storage Unit | x1 | -5/Factory Alien Tech Used ----------------- None Achievements -------------- It Was An Accident, I Swear Oh No You Don't! Preemptive Strike Release The Drones! Challenges ------------ None Game ------ Seed SkeletonAlphaThruster Manual? 0 Play Time 03:51:02 Cumulative 32.0 hours Start 2020.03.25 @ 16:57:56 End 2020.03.25 @ 22:42:03 Sessions 3 Manual Loads 0 Difficulty Rogue Special Mode None Game No. 55 Rogue 55 Adventurer 0 Explorer 0 Win Type - Total 1 Types 1/0/0/0/0/0/0 Lore% 8 Gallery% 43 Achievement% 23 Wizard Run 0 Options --------- ASCII 0 Keyboard 0 Movement Mouse Keybinds 0 Fullscreen 1 Font 18/SmallcapsGlow Map View 76x50 Tactical HUD 1 Map Filters NONE Filters NONE Steam 1 RUN: d40321f1-020d-4a0f-99f6-2c413ad3c566